fUST/lending_fUST_20250812
["ID","MTS","AMOUNT","RATE_DAILY","PERIOD"]
[378697586,1754961047939,-458.5564,0.00019343,2]
[378697587,1754961047948,-458.5564,0.00019343,2]
[378697588,1754961047959,-151.0,0.00019343,2]
[378697589,1754961047968,-530.0,0.00019343,2]
[378697590,1754961047978,-2457.17,0.00019343,2]
[378697591,1754961047988,-2157.46,0.00019343,2]
[378697592,1754961047999,-1500.23,0.00019343,2]
[378697593,1754961048010,-460.0,0.00019343,2]
[378697594,1754961048021,-551.27,0.00019343,2]
[378697595,1754961048218,-460.0,0.00019343,2]
[378697596,1754961048227,-3814.9,0.00019343,2]
[378697597,1754961048237,-460.0,0.00019343,2]
[378697598,1754961048247,-460.0,0.00019343,2]
[378697599,1754961048257,-460.0,0.00019343,2]
[378697600,1754961048267,-151.0,0.00019344,2]
[378697601,1754961048277,-151.0,0.00019344,2]
[378697602,1754961048286,-151.0,0.00019344,2]
[378697603,1754961048296,-475.859386,0.00019344,2]
[378697604,1754961048310,-475.859386,0.00019344,2]
[378697605,1754961048320,-3444.29,0.00019344,2]
[378697606,1754961048329,-460.0,0.00019344,2]
[378697607,1754961048339,-151.0,0.00019346,2]
[378697608,1754961048349,-151.0,0.00019346,2]
[378697609,1754961048359,-151.0,0.00019346,2]
[378697610,1754961048368,-3585.767819,0.00019346,2]
[378697611,1754961048378,-500.0,0.00019373,2]
[378697612,1754961048388,-500.0,0.00019373,2]
[378697613,1754961048398,-500.0,0.00019373,2]
[378697614,1754961048407,-500.0,0.00019373,2]
[378697615,1754961048417,-500.0,0.00019373,2]
[378697616,1754961048427,-500.0,0.00019373,2]
[378697617,1754961048437,-500.0,0.00019373,2]
[378697618,1754961048447,-341.62190171,0.00019373,2]
[378697619,1754961048456,-500.0,0.00019373,2]
[378697620,1754961048466,-500.0,0.00019373,2]
[378697621,1754961048476,-157.46260862,0.00019373,2]
[378697622,1754961048486,-349.65332276,0.00019373,2]
[378697623,1754961048497,-168.46954688,0.00019373,2]
[378697624,1754961048507,-500.0,0.00019373,2]
[378697625,1754961048517,-340.09270154,0.00019373,2]
[378697626,1754961048527,-160.06680905,0.00019373,2]
[378697627,1754961048537,-400.13434124,0.00019373,2]
[378697628,1754961048547,-500.0,0.00019373,2]
[378697629,1754961048556,-500.0,0.00019373,2]
[378697630,1754961048566,-500.0,0.00019373,2]
[378697631,1754961048576,-500.0,0.00019373,2]
[378697632,1754961048585,-500.0,0.00019373,2]
[378697633,1754961048595,-503.39649047,0.00019373,2]
[378697634,1754961048606,-500.0,0.00019373,2]
[378697635,1754961048618,-500.0,0.00019373,2]
[378697636,1754961048628,-160.06638324,0.00019373,2]
[378697637,1754961048637,-500.0,0.00019373,2]
[378697638,1754961048647,-500.0,0.00019373,2]
[378697639,1754961048658,-158.12880838,0.00019373,2]
[378697640,1754961048667,-500.0,0.00019373,2]
[378697641,1754961048677,-500.0,0.00019373,2]
[378697642,1754961048689,-500.0,0.00019373,2]
[378697643,1754961048701,-500.0,0.00019373,2]
[378697644,1754961048711,-500.0,0.00019373,2]
[378697645,1754961048722,-500.0,0.00019373,2]
[378697646,1754961048733,-500.0,0.00019373,2]
[378697647,1754961048743,-500.0,0.00019373,2]
[378697648,1754961048754,-500.0,0.00019373,2]
[378697649,1754961048765,-151.0,0.00019373,2]
[378697650,1754961048780,-151.0,0.00019373,2]
[378697651,1754961048791,-322.422727,0.00019373,2]
[378697652,1754961048802,-322.422727,0.00019373,2]
[378697653,1754961048814,-151.0,0.00019373,2]
[378697654,1754961048824,-175.086479,0.00019373,2]
[378697655,1754961048835,-175.086479,0.00019373,2]
[378697656,1754961048845,-151.0,0.00019373,2]
[378697657,1754961048856,-189.091646,0.00019373,2]
[378697658,1754961048867,-151.0,0.00019373,2]
[378697659,1754961048877,-151.0,0.00019373,2]
[378697660,1754961048887,-187.028429,0.00019373,2]
[378697661,1754961048897,-187.028429,0.00019373,2]
[378697662,1754961048908,-151.0,0.00019373,2]
[378697663,1754961048918,-228.849815,0.00019373,2]
[378697664,1754961048928,-228.849815,0.00019373,2]
[378697665,1754961048939,-3842.46,0.00019388,2]
[378697666,1754961048949,-12671.21867243,0.00019388,2]
[378697667,1754961048960,-160.0,0.00019388,2]
[378697668,1754961048970,-160.0,0.00019388,2]
[378697669,1754961048980,-461.69158338,0.00019388,2]
[378697670,1754961048990,-216.68257536,0.00019388,2]
[378697671,1754961049000,-160.0,0.00019388,2]
[378697672,1754961049011,-417.15472785,0.00019388,2]
[378697673,1754961049020,-215.4905783,0.00019388,2]
[378697674,1754961049030,-160.0,0.00019388,2]
[378697675,1754961049040,-527.9539256,0.00019388,2]
[378697676,1754961049050,-160.0,0.00019388,2]
[378697677,1754961049061,-160.0,0.00019388,2]
[378697678,1754961049072,-843.18994796,0.00019388,2]
[378697679,1754961049082,-231.9940742,0.00019388,2]
[378697680,1754961049093,-160.0,0.00019388,2]
[378697681,1754961049103,-201.6,0.00019416,2]
[378697682,1754961049113,-460.0,0.00019512,2]
[378697683,1754961049123,-660.22,0.00019512,2]
[378697684,1754961049133,-343.50154358,0.00019512,2]
[378697685,1754961049144,-460.0,0.00019513,2]
[378697686,1754961049154,-460.0,0.00019513,2]
[378697687,1754961049164,-548.21,0.00019513,2]
[378697688,1754961049174,-476.95,0.00019513,2]
[378697689,1754961049184,-2289.39,0.00019513,2]
[378697690,1754961049193,-460.0,0.00019513,2]
[378697691,1754961049203,-460.0,0.00019513,2]
[378697692,1754961049213,-564.29,0.00019513,2]
[378697693,1754961049223,-1384.4,0.00019513,2]
[378697694,1754961049235,-460.0,0.00019513,2]
[378697695,1754961049245,-460.0,0.00019513,2]
[378697696,1754961049255,-460.0,0.00019513,2]
[378697697,1754961049266,-4496.04,0.00019513,2]
[378697698,1754961049277,-880.94,0.00019514,2]
[378697699,1754961049287,-460.0,0.00019514,2]
[378697700,1754961049298,-3611.52,0.00019514,2]
[378697701,1754961049308,-1382.19,0.00019514,2]
[378697702,1754961049319,-460.0,0.00019514,2]
[378697703,1754961049329,-1070.11,0.00019514,2]
[378697704,1754961049339,-2800.52,0.00019514,2]
[378697705,1754961049349,-1337.21,0.00019514,2]
[378697706,1754961049359,-460.0,0.00019514,2]
[378697707,1754961049369,-460.0,0.00019514,2]
[378697708,1754961049379,-460.0,0.00019514,2]
[378697709,1754961049390,-460.0,0.00019514,2]
[378697710,1754961049400,-520.46,0.00019514,2]
[378697711,1754961049410,-1848.44,0.00019514,2]
[378697712,1754961049421,-2122.24,0.00019514,2]
[378697713,1754961049432,-460.0,0.00019514,2]
[378697714,1754961049442,-460.0,0.00019514,2]
[378697715,1754961049452,-460.0,0.00019514,2]
[378697716,1754961049461,-557.97,0.00019514,2]
[378697717,1754961049471,-460.0,0.00019514,2]
[378697718,1754961049481,-460.0,0.00019515,2]
[378697719,1754961049491,-460.0,0.00019515,2]
[378697720,1754961049502,-470.77,0.00019515,2]
[378697721,1754961049511,-460.0,0.00019515,2]
[378697722,1754961049521,-1142.02,0.00019515,2]
[378697723,1754961049530,-933.19,0.00019515,2]
[378697724,1754961049539,-508.47,0.00019515,2]
[378697725,1754961049549,-460.0,0.00019515,2]
[378697726,1754961049559,-644.06,0.00019515,2]
[378697727,1754961049568,-1041.35,0.00019515,2]
[378697728,1754961049577,-460.0,0.00019515,2]
[378697729,1754961049587,-5662.12,0.00019515,2]
[378697730,1754961049596,-460.0,0.00019515,2]
[378697731,1754961049606,-460.0,0.00019515,2]
[378697732,1754961049619,-460.0,0.00019515,2]
[378697733,1754961049629,-460.0,0.00019515,2]
[378697734,1754961049639,-460.0,0.00019515,2]
[378697735,1754961049648,-467.83,0.00019515,2]
[378697736,1754961049658,-1017.4,0.00019515,2]
[378697737,1754961049667,-460.0,0.00019515,2]
[378697738,1754961049676,-460.0,0.00019515,2]
[378697739,1754961049687,-564.87,0.00019515,2]
[378697740,1754961049696,-263.31964792,0.00019515,2]
[378697741,1754961049707,-460.0,0.00019515,2]
[378697742,1754961049716,-460.0,0.00019515,2]
[378697743,1754961049726,-460.0,0.00019515,2]
[378697744,1754961049742,-460.0,0.00019515,2]
[378697745,1754961049756,-495.3,0.00019515,2]
[378697746,1754961049766,-460.0,0.00019515,2]
[378697747,1754961049776,-460.0,0.00019515,2]
[378697748,1754961049786,-851.43,0.00019515,2]
[378697749,1754961049796,-460.0,0.00019515,2]
[378697750,1754961049806,-3987.56,0.00019515,2]
[378697751,1754961049815,-460.0,0.00019515,2]
[378697752,1754961049825,-527.32,0.00019515,2]
[378697753,1754961049834,-980.86,0.00019515,2]
[378697754,1754961049844,-460.0,0.00019515,2]
[378697755,1754961049854,-559.31,0.00019515,2]
[378697756,1754961049863,-1359.37,0.00019515,2]
[378697757,1754961049873,-994.72,0.00019515,2]
[378697758,1754961049884,-460.0,0.00019515,2]
[378697759,1754961049894,-2156.76,0.00019515,2]
[378697760,1754961049904,-927.82,0.00019515,2]
[378697761,1754961049914,-1211.11,0.00019515,2]
[378697762,1754961049925,-473.86814116,0.00019515,2]
[378697763,1754961049937,-460.0,0.00019515,2]
[378697764,1754961049947,-3782.63,0.00019515,2]
[378697765,1754961049957,-910.93,0.00019515,2]
[378697766,1754961049967,-716.34,0.00019515,2]
[378697767,1754961049977,-1054.97,0.00019515,2]
[378697768,1754961049986,-609.68,0.00019515,2]
[378697769,1754961049995,-1009.28,0.00019515,2]
[378697770,1754961050006,-460.0,0.00019515,2]
[378697771,1754961050015,-3050.74,0.00019515,2]
[378697772,1754961050025,-460.0,0.00019515,2]
[378697773,1754961050035,-460.0,0.00019515,2]
[378697774,1754961050049,-460.0,0.00019515,2]
[378697775,1754961050059,-460.0,0.00019515,2]
[378697776,1754961050068,-460.0,0.00019515,2]
[378697777,1754961050079,-1533.17,0.00019515,2]
[378697778,1754961050089,-2964.63,0.00019515,2]
[378697779,1754961050098,-460.0,0.00019515,2]
[378697780,1754961050107,-460.0,0.00019515,2]
[378697781,1754961050116,-460.0,0.00019515,2]
[378697782,1754961050127,-847.73,0.00019515,2]
[378697783,1754961050136,-466.69,0.00019515,2]
[378697784,1754961050145,-1291.63,0.00019515,2]
[378697785,1754961050155,-580.56,0.00019516,2]
[378697786,1754961050167,-460.0,0.00019516,2]
[378697787,1754961050183,-460.0,0.00019516,2]
[378697788,1754961050197,-460.0,0.00019516,2]
[378697789,1754961050209,-460.0,0.00019516,2]
[378697790,1754961050220,-460.0,0.00019516,2]
[378697791,1754961050233,-460.0,0.00019516,2]
[378697792,1754961050246,-1019.8,0.00019516,2]
[378697793,1754961050259,-718.56,0.00019516,2]
[378697794,1754961050272,-460.0,0.00019516,2]
[378697795,1754961050287,-657.97,0.00019516,2]
[378697796,1754961050300,-460.0,0.00019516,2]
[378697797,1754961050312,-460.0,0.00019516,2]
[378697798,1754961050323,-460.0,0.00019516,2]
[378697799,1754961050334,-460.0,0.00019516,2]
[378697800,1754961050347,-460.0,0.00019516,2]
[378697801,1754961050360,-460.0,0.00019516,2]
[378697802,1754961050372,-460.0,0.00019516,2]
[378697803,1754961050386,-805.43,0.00019516,2]
[378697804,1754961050398,-352.57653452,0.00019516,2]
[378697805,1754961050411,-653.37,0.00019516,2]
[378697806,1754961050425,-460.0,0.00019516,2]
[378697807,1754961050437,-460.0,0.00019516,2]
[378697808,1754961050449,-460.0,0.00019516,2]
[378697809,1754961050463,-460.0,0.00019516,2]
[378697810,1754961050475,-460.0,0.00019516,2]
[378697811,1754961050488,-460.0,0.00019516,2]
[378697812,1754961050501,-460.0,0.00019516,2]
[378697813,1754961050512,-460.0,0.00019516,2]
[378697814,1754961050525,-460.0,0.00019516,2]
[378697815,1754961050538,-460.0,0.00019516,2]
[378697816,1754961050551,-460.0,0.00019516,2]
[378697817,1754961050564,-460.0,0.00019516,2]
[378697818,1754961050576,-460.0,0.00019516,2]
[378697819,1754961050587,-1068.57,0.00019516,2]
[378697820,1754961050598,-460.0,0.00019516,2]
[378697821,1754961050611,-603.87,0.00019516,2]
[378697822,1754961050623,-462.9,0.00019516,2]
[378697823,1754961050638,-460.0,0.00019516,2]
[378697824,1754961050651,-460.0,0.00019516,2]
[378697825,1754961050662,-1132.92,0.00019516,2]
[378697826,1754961050672,-460.0,0.00019516,2]
[378697827,1754961050685,-674.21,0.00019516,2]
[378697828,1754961050697,-460.0,0.00019516,2]
[378697829,1754961050710,-460.0,0.00019516,2]
[378697830,1754961050720,-1807.04,0.00019516,2]
[378697831,1754961050731,-460.0,0.00019516,2]
[378697832,1754961050741,-460.0,0.00019516,2]
[378697833,1754961050753,-460.0,0.00019516,2]
[378697834,1754961050764,-460.0,0.00019516,2]
[378697835,1754961050775,-460.0,0.00019516,2]
[378697836,1754961050787,-460.0,0.00019516,2]
[378697837,1754961050798,-460.0,0.00019516,2]
[378697838,1754961050808,-306.27460478,0.00019516,2]
[378697839,1754961050820,-460.0,0.00019516,2]
[378697840,1754961050831,-717.43,0.00019516,2]
[378697841,1754961050842,-580.65,0.00019516,2]
[378697842,1754961050853,-490.22135844,0.00019516,2]
[378697843,1754961050864,-586.91,0.00019516,2]
[378697844,1754961050876,-460.0,0.00019516,2]
[378697845,1754961050887,-552.12,0.00019516,2]
[378697846,1754961050899,-1523.52,0.00019516,2]
[378697847,1754961050911,-460.0,0.00019516,2]
[378697848,1754961050924,-460.0,0.00019516,2]
[378697849,1754961050935,-460.0,0.00019516,2]
[378697850,1754961050947,-460.0,0.00019516,2]
[378697851,1754961050958,-460.0,0.00019516,2]
[378697852,1754961050969,-308.20540644,0.00019516,2]
[378697853,1754961050981,-460.0,0.00019516,2]
[378697854,1754961050992,-460.0,0.00019516,2]
[378697855,1754961051004,-460.0,0.00019516,2]
[378697856,1754961051015,-738.34,0.00019516,2]
[378697857,1754961051027,-460.0,0.00019516,2]
[378697858,1754961051039,-460.0,0.00019516,2]
[378697859,1754961051051,-460.0,0.00019516,2]
[378697860,1754961051062,-460.0,0.00019516,2]
[378697861,1754961051073,-460.0,0.00019516,2]
[378697862,1754961051085,-2454.84,0.00019516,2]
[378697863,1754961051097,-491.09,0.00019516,2]
[378697864,1754961051109,-534.16,0.00019516,2]
[378697865,1754961051122,-1119.95,0.00019516,2]
[378697866,1754961051133,-460.0,0.00019516,2]
[378697867,1754961051144,-536.78,0.00019516,2]
[378697868,1754961051156,-460.0,0.00019516,2]
[378697869,1754961051167,-460.0,0.00019516,2]
[378697870,1754961051178,-460.0,0.00019516,2]
[378697871,1754961051189,-1529.48,0.00019516,2]
[378697872,1754961051201,-489.87,0.00019516,2]
[378697873,1754961051212,-460.0,0.00019516,2]
[378697874,1754961051223,-1177.28,0.00019516,2]
[378697875,1754961051234,-460.0,0.00019516,2]
[378697876,1754961051247,-460.0,0.00019516,2]
[378697877,1754961051259,-715.66,0.00019516,2]
[378697878,1754961051271,-460.0,0.00019516,2]
[378697879,1754961051282,-460.0,0.00019516,2]
[378697880,1754961051293,-460.0,0.00019516,2]
[378697881,1754961051304,-460.0,0.00019516,2]
[378697882,1754961051315,-460.0,0.00019516,2]
[378697883,1754961051328,-460.0,0.00019516,2]
[378697884,1754961051339,-1701.96,0.00019516,2]
[378697885,1754961051349,-1754.81,0.00019516,2]
[378697886,1754961051360,-262.0,0.00019535,2]
[378697887,1754961051371,-201.6,0.00019556,2]
[378697888,1754961051383,-151.0,0.00019615,2]
[378697889,1754961051394,-151.0,0.00019616,2]
[378697890,1754961051405,-151.0,0.00019616,2]
[378697891,1754961051417,-151.0,0.00019616,2]
[378697892,1754961051428,-151.0,0.00019616,2]
[378697893,1754961051440,-460.0,0.00019616,2]
[378697894,1754961051451,-460.0,0.00019616,2]
[378697895,1754961051463,-494.71,0.00019616,2]
[378697896,1754961051474,-460.0,0.00019616,2]
[378697897,1754961051486,-460.0,0.00019616,2]
[378697898,1754961051497,-1128.94,0.00019616,2]
[378697899,1754961051509,-460.0,0.00019616,2]
[378697900,1754961051520,-460.0,0.00019616,2]
[378697901,1754961051531,-151.0,0.00019616,2]
[378697902,1754961051542,-460.0,0.00019616,2]
[378697903,1754961051553,-462.56,0.00019616,2]
[378697904,1754961051563,-460.0,0.00019616,2]
[378697905,1754961051574,-460.0,0.00019616,2]
[378697906,1754961051584,-151.0,0.00019616,2]
[378697907,1754961051596,-460.0,0.00019616,2]
[378697908,1754961051607,-460.0,0.00019616,2]
[378697909,1754961051620,-460.0,0.00019616,2]
[378697910,1754961051630,-460.0,0.00019616,2]
[378697911,1754961051641,-651.81,0.00019616,2]
[378697912,1754961051654,-460.0,0.00019616,2]
[378697913,1754961051666,-506.94,0.00019616,2]
[378697914,1754961051677,-460.0,0.00019616,2]
[378697915,1754961051690,-944.89,0.00019616,2]
[378697916,1754961051702,-475.859386,0.00019616,2]
[378697917,1754961051713,-460.0,0.00019616,2]
[378697918,1754961051724,-460.0,0.00019616,2]
[378697919,1754961051735,-475.859386,0.00019616,2]
[378697920,1754961051746,-460.0,0.00019616,2]
[378697921,1754961051759,-482.40411595,0.00019616,2]
[378697922,1754961051770,-724.66,0.00019616,2]
[378697923,1754961051780,-460.0,0.00019616,2]
[378697924,1754961051791,-151.0,0.00019616,2]
[378697925,1754961051802,-460.0,0.00019616,2]
[378697926,1754961051814,-688.03,0.00019616,2]
[378697927,1754961051826,-466.52,0.00019616,2]
[378697928,1754961051836,-917.47,0.00019616,2]
[378697929,1754961051847,-460.0,0.00019616,2]
[378697930,1754961051858,-151.0,0.00019616,2]
[378697931,1754961051868,-460.0,0.00019616,2]
[378697932,1754961051879,-1835.2,0.00019616,2]
[378697933,1754961051892,-151.0,0.00019616,2]
[378697934,1754961051905,-397.770434,0.00019616,2]
[378697935,1754961051916,-460.0,0.00019616,2]
[378697936,1754961051927,-460.0,0.00019616,2]
[378697937,1754961051938,-460.0,0.00019616,2]
[378697938,1754961051950,-215.727577,0.00019616,2]
[378697939,1754961051960,-3842.46,0.00019616,2]
[378697940,1754961051972,-215.727577,0.00019616,2]
[378697941,1754961051983,-458.5564,0.00019616,2]
[378697942,1754961051996,-458.5564,0.00019616,2]
[378697943,1754961052007,-460.0,0.00019616,2]
[378697944,1754961052018,-151.0,0.00019616,2]
[378697945,1754961052029,-460.0,0.00019616,2]
[378697946,1754961052040,-151.0,0.00019616,2]
[378697947,1754961052051,-322.422727,0.00019616,2]
[378697948,1754961052061,-322.422727,0.00019616,2]
[378697949,1754961052072,-175.086479,0.00019616,2]
[378697950,1754961052083,-175.086479,0.00019616,2]
[378697951,1754961052094,-460.0,0.00019616,2]
[378697952,1754961052105,-151.0,0.00019616,2]
[378697953,1754961052115,-649.7,0.00019616,2]
[378697954,1754961052126,-184.26734,0.00019616,2]
[378697955,1754961052137,-460.0,0.00019616,2]
[378697956,1754961052148,-187.028429,0.00019616,2]
[378697957,1754961052159,-590.9,0.00019616,2]
[378697958,1754961052170,-187.028429,0.00019616,2]
[378697959,1754961052181,-3157.45,0.00019616,2]
[378697960,1754961052192,-151.0,0.00019616,2]
[378697961,1754961052203,-12815.59,0.00019616,2]
[378697962,1754961052213,-228.849815,0.00019616,2]
[378697963,1754961052223,-228.849815,0.00019616,2]
[378697964,1754961052232,-460.0,0.00019617,2]
[378697965,1754961052241,-460.0,0.00019617,2]
[378697966,1754961052250,-460.0,0.00019617,2]
[378697967,1754961052260,-460.0,0.00019617,2]
[378697968,1754961052534,-460.0,0.00019617,2]
[378697969,1754961052550,-460.0,0.00019617,2]
[378697970,1754961052559,-536.82,0.00019617,2]
[378697971,1754961052569,-526.3,0.00019617,2]
[378697972,1754961052578,-460.0,0.00019617,2]
[378697973,1754961052587,-442.83929197,0.00019617,2]
[378697974,1754961052596,-460.0,0.00019617,2]
[378697975,1754961052609,-460.0,0.00019617,2]
[378697976,1754961052618,-460.0,0.00019617,2]
[378697977,1754961052627,-460.0,0.00019617,2]
[378697978,1754961052636,-460.0,0.00019617,2]
[378697979,1754961052646,-968.81,0.00019617,2]
[378697980,1754961052655,-460.0,0.00019617,2]
[378697981,1754961052664,-460.0,0.00019617,2]
[378697982,1754961052673,-729.75,0.00019617,2]
[378697983,1754961052683,-590.57021053,0.00019617,2]
[378697984,1754961052692,-460.0,0.00019617,2]
[378697985,1754961052701,-460.0,0.00019617,2]
[378697986,1754961052710,-460.0,0.00019617,2]
[378697987,1754961052718,-460.0,0.00019617,2]
[378697988,1754961052727,-460.0,0.00019617,2]
[378697989,1754961052736,-460.0,0.00019617,2]
[378697990,1754961052745,-460.0,0.00019617,2]
[378697991,1754961052755,-460.0,0.00019617,2]
[378697992,1754961052764,-460.0,0.00019617,2]
[378697993,1754961052773,-460.0,0.00019617,2]
[378697994,1754961052783,-530.0,0.00019617,2]
[378697995,1754961052792,-2457.17,0.00019617,2]
[378697996,1754961052802,-2157.46,0.00019617,2]
[378697997,1754961052811,-1500.23,0.00019617,2]
[378697998,1754961052820,-460.0,0.00019617,2]
[378697999,1754961052829,-551.27,0.00019617,2]
[378698000,1754961052838,-3814.9,0.00019617,2]
[378698001,1754961052847,-460.0,0.00019617,2]
[378698002,1754961052856,-151.0,0.00019618,2]
[378698003,1754961052865,-151.0,0.00019618,2]
[378698004,1754961052874,-151.0,0.00019618,2]
[378698005,1754961052883,-259.049617,0.00019618,2]
[378698006,1754961052893,-3585.767819,0.00019618,2]
[378698007,1754961052902,-3444.29,0.00019618,2]
[378698008,1754961052912,-460.0,0.00019618,2]
[378698009,1754961052921,-500.0,0.00019621,2]
[378698010,1754961052930,-1000.0,0.00019621,2]
[378698011,1754961052939,-500.0,0.00019621,2]
[378698012,1754961052949,-504.04565905,0.00019621,2]
[378698013,1754961052958,-500.0,0.00019621,2]
[378698014,1754961052968,-1000.0,0.00019621,2]
[378698015,1754961052977,-500.0,0.00019621,2]
[378698016,1754961052987,-1000.0,0.00019621,2]
[378698017,1754961052996,-500.0,0.00019621,2]
[378698018,1754961053007,-1000.0,0.00019621,2]
[378698019,1754961053017,-500.0,0.00019621,2]
[378698020,1754961053026,-1000.0,0.00019621,2]
[378698021,1754961053036,-1000.0,0.00019621,2]
[378698022,1754961053053,-928.82514939,0.00019621,2]
[378698023,1754961053072,-1000.0,0.00019621,2]
[378698024,1754961053084,-151.0,0.00019621,2]
[378698025,1754961053094,-583.93173583,0.00019673,2]
[378698026,1754961053103,-150.0,0.00019673,2]
[378698027,1754961053113,-201.6,0.00019697,2]
[378698028,1754961053122,-1100.0,0.00019712,2]
[378698029,1754961053132,-179.85611511,0.00019736,2]
[378698030,1754961053141,-150.75861699,0.00019764,2]
[378698031,1754961053151,-262.0,0.0001978,2]
[378698032,1754961053160,-460.0,0.00019786,2]
[378698033,1754961053170,-660.22,0.00019786,2]
[378698034,1754961053179,-460.0,0.00019787,2]
[378698035,1754961053188,-548.21,0.00019787,2]
[378698036,1754961053197,-476.95,0.00019787,2]
[378698037,1754961053206,-2289.39,0.00019787,2]
[378698038,1754961053216,-564.29,0.00019787,2]
[378698039,1754961053225,-1384.4,0.00019787,2]
[378698040,1754961053235,-460.0,0.00019787,2]
[378698041,1754961053244,-4496.04,0.00019787,2]
[378698042,1754961053255,-880.94,0.00019788,2]
[378698043,1754961053264,-460.0,0.00019788,2]
[378698044,1754961053274,-3611.52,0.00019788,2]
[378698045,1754961053283,-1382.19,0.00019788,2]
[378698046,1754961053294,-460.0,0.00019788,2]
[378698047,1754961053304,-1070.11,0.00019788,2]
[378698048,1754961053315,-2800.52,0.00019788,2]
[378698049,1754961053324,-1337.21,0.00019788,2]
[378698050,1754961053334,-460.0,0.00019788,2]
[378698051,1754961053343,-460.0,0.00019788,2]
[378698052,1754961053352,-460.0,0.00019788,2]
[378698053,1754961053362,-520.46,0.00019788,2]
[378698054,1754961053371,-1848.44,0.00019788,2]
[378698055,1754961053380,-2122.24,0.00019788,2]
[378698056,1754961053390,-460.0,0.00019788,2]
[378698057,1754961053399,-460.0,0.00019788,2]
[378698058,1754961053408,-557.97,0.00019788,2]
[378698059,1754961053418,-460.0,0.00019788,2]
[378698060,1754961053427,-460.0,0.00019789,2]
[378698061,1754961053436,-460.0,0.00019789,2]
[378698062,1754961053446,-470.77,0.00019789,2]
[378698063,1754961053455,-263.5790351,0.00019789,2]
[378698064,1754961053465,-1142.02,0.00019789,2]
[378698065,1754961053475,-933.19,0.00019789,2]
[378698066,1754961053484,-508.47,0.00019789,2]
[378698067,1754961053493,-460.0,0.00019789,2]
[378698068,1754961053505,-644.06,0.00019789,2]
[378698069,1754961053514,-1041.35,0.00019789,2]
[378698070,1754961053523,-460.0,0.00019789,2]
[378698071,1754961053532,-151.0,0.00019789,2]
[378698072,1754961053542,-5662.12,0.00019789,2]
[378698073,1754961053551,-460.0,0.00019789,2]
[378698074,1754961053560,-460.0,0.00019789,2]
[378698075,1754961053569,-460.0,0.00019789,2]
[378698076,1754961053578,-155.426614,0.00019789,2]
[378698077,1754961053587,-460.0,0.00019789,2]
[378698078,1754961053596,-313.06250127,0.00019789,2]
[378698079,1754961053608,-467.83,0.00019789,2]
[378698080,1754961053620,-1017.4,0.00019789,2]
[378698081,1754961053629,-460.0,0.00019789,2]
[378698082,1754961053638,-215.727577,0.00019789,2]
[378698083,1754961053648,-460.0,0.00019789,2]
[378698084,1754961053659,-215.727577,0.00019789,2]
[378698085,1754961053669,-460.0,0.00019789,2]